bitfinex-derivatives/quotes_BNBF0:USTF0_20250708
["timestamp","ask_amount","ask_price","bid_price","bid_amount"]
[1752002327101,1.69847131,661.37,661.06,2.118]
[1752002328302,1.69847131,661.36,661.06,2.118]
[1752002331005,1.69847131,661.36,661.05,0.26311213]
[1752002332305,1.69847131,661.37,661.05,0.26311213]
[1752002332703,1.69847131,661.38,661.05,0.26311213]
[1752002334910,1.69847131,661.37,661.06,2.494]
[1752002336214,1.69847131,661.38,661.06,2.494]
[1752002339217,1.69847131,661.4,661.06,2.494]
[1752002340313,1.69847131,661.41,661.06,2.494]
[1752002342513,1.69847131,661.4,661.06,2.494]
[1752002349212,1.69847131,661.39,661.06,2.494]
[1752002350316,1.69847131,661.37,661.06,2.494]
[1752002351524,1.69847131,661.38,661.06,2.494]
[1752002353223,1.69847131,661.47,661.06,2.494]
[1752002353721,1.69847131,661.46,661.06,2.494]
[1752002355222,1.01568225,661.65,661.06,2.494]
[1752002355223,1.69847131,661.47,661.06,2.494]
[1752002358821,1.69847131,661.48,661.06,2.494]
[1752002359825,1.69847131,661.46,661.06,2.494]
[1752002360220,1.69847131,661.4,661.06,2.494]
[1752002360525,1.69847131,661.39,661.06,2.494]
[1752002361228,1.69847131,661.37,661.06,2.494]
[1752002361427,1.69847131,661.38,661.06,2.494]
[1752002362324,1.69847131,661.39,661.06,2.494]
[1752002363228,1.69847131,661.36,661.06,2.494]
[1752002363428,1.69847131,661.35,661.06,2.494]
[1752002363629,1.69847131,661.33,661.06,2.494]
[1752002363826,1.69847131,661.31,661.06,2.494]
[1752002364031,1.69847131,661.32,661.06,2.494]
[1752002364427,1.69847131,661.33,661.06,2.494]
[1752002364629,1.69847131,661.32,661.06,2.494]
[1752002365426,1.69847131,661.33,661.06,2.494]
[1752002366532,1.69847131,661.3,661.06,2.494]
[1752002368142,1.69847131,661.31,661.06,2.494]
[1752002368641,1.69847131,661.3,661.06,2.494]
[1752002369038,1.69847131,661.29,661.06,2.494]
[1752002369240,1.69847131,661.3,661.06,2.494]
[1752002369440,1.69847131,661.31,661.06,2.494]
[1752002370138,1.69847131,661.3,661.06,2.494]
[1752002370338,1.69847131,661.31,661.06,2.494]
[1752002371341,3.39265445,661.58,661.06,2.494]
[1752002371342,1.69847131,661.32,661.06,2.494]
[1752002371938,1.69847131,661.32,661.05,0.26311213]
[1752002374543,1.69847131,661.33,661.05,0.26311213]
[1752002375244,1.69847131,661.33,661.06,1.849]
[1752002380652,1.69847131,661.32,661.06,1.849]
[1752002384254,1.69847131,661.31,661.06,1.849]
[1752002385560,1.69847131,661.32,661.06,1.849]
[1752002387264,1.69847131,661.36,661.06,1.849]
[1752002388463,1.69847131,661.37,661.06,1.849]
[1752002392468,1.69847131,661.36,661.06,1.849]
[1752002394967,1.69847131,661.37,661.06,1.849]
[1752002395870,1.69847131,661.38,661.06,1.849]
[1752002396466,1.69847131,661.39,661.06,1.849]
[1752002396965,1.69847131,661.37,661.06,1.849]
[1752002397167,1.69847131,661.38,661.06,1.849]
[1752002397366,1.69847131,661.39,661.06,1.849]
[1752002397568,1.69847131,661.37,661.06,1.849]
[1752002398072,1.69847131,661.36,661.06,1.849]
[1752002398273,1.69847131,661.26,661.06,1.849]
[1752002398472,1.69847131,661.27,661.06,1.849]
[1752002400969,2.25697379,661.43,661.06,1.849]
[1752002401175,1.6945586,661.28,661.06,1.849]
[1752002401370,1.6945586,661.27,661.06,1.849]
[1752002402480,1.6945586,661.3,661.06,1.849]
[1752002402677,1.6945586,661.29,661.06,1.849]
[1752002403179,1.6945586,661.3,661.06,1.849]
[1752002405176,1.6945586,661.29,661.06,1.849]
[1752002405578,1.6945586,661.28,661.06,1.849]
[1752002406074,1.6945586,661.29,661.06,1.849]
[1752002408384,1.6945586,661.28,661.06,1.849]
[1752002409281,1.6945586,661.29,661.06,1.849]
[1752002412488,1.6945586,661.25,661.06,1.849]
[1752002415086,1.6945586,661.23,661.06,1.849]
[1752002416583,1.6945586,661.25,661.06,1.849]
[1752002416788,1.6945586,661.24,661.06,1.849]
[1752002419186,2.25697379,661.37,661.06,1.849]
[1752002419187,1.6945586,661.23,661.06,1.849]
[1752002421489,1.6945586,661.22,661.06,1.849]
[1752002422389,1.6945586,661.22,660.87,0.26316585]
[1752002425291,1.6945586,661.22,660.88,1.646]
[1752002426492,1.6945586,661.19,660.88,1.646]
[1752002429291,1.6945586,661.2,660.88,1.646]
[1752002431097,1.6945586,661.21,660.88,1.646]
[1752002431497,1.6945586,661.2,660.88,1.646]
[1752002433197,1.6945586,661.24,660.88,1.646]
[1752002438495,1.6945586,661.24,660.87,0.26316585]
[1752002440500,1.6945586,661.23,660.87,0.26316585]
[1752002441699,1.6945586,661.23,660.88,1.616]
[1752002442800,1.6945586,661.19,660.88,1.616]
[1752002446604,1.6945586,661.18,660.88,1.616]
[1752002450409,1.6945586,661.17,660.88,1.616]
[1752002451908,1.6945586,661.18,660.88,1.616]
[1752002452510,1.6945586,661.17,660.88,1.616]
[1752002453510,1.6945586,661.16,660.88,1.616]
[1752002453913,1.6945586,661.15,660.88,1.616]
[1752002455112,1.6945586,661.14,660.88,1.616]
[1752002456315,1.6945586,661.13,660.88,1.616]
[1752002457420,1.6945586,661.11,660.88,1.616]
[1752002460120,1.6945586,661.12,660.88,1.616]
[1752002462018,1.6945586,661.11,660.88,1.616]
[1752002469725,1.6945586,661.12,660.88,1.616]
[1752002469925,1.6945586,661.11,660.88,1.616]
[1752002470428,1.6945586,661.1,660.88,1.616]
[1752002471629,1.6945586,661.11,660.88,1.616]
[1752002474131,1.6945586,661.12,660.88,1.616]
[1752002475432,1.6945586,661.11,660.88,1.616]
[1752002481537,1.6945586,661.1,660.88,1.616]
[1752002482940,2.25697379,661.21,660.88,1.616]
[1752002483135,1.69965162,661.1,660.88,1.616]
[1752002484943,1.69965162,661.12,660.88,1.616]
[1752002485845,1.69965162,661.12,660.87,0.26316585]
[1752002487842,1.69965162,661.11,660.87,0.26316585]
[1752002488541,1.69965162,661.11,660.88,1.782]
[1752002491949,1.69965162,661.12,660.88,1.782]
[1752002494550,1.69965162,661.13,660.88,1.782]
[1752002495050,1.69965162,661.11,660.88,1.782]
[1752002495247,1.69965162,661.12,660.88,1.782]
[1752002496647,1.69969265,661.12,660.88,1.782]
[1752002504370,1.69969265,661.11,660.88,1.782]
[1752002519073,1.69969265,661.12,660.88,1.782]
[1752002519874,1.69969265,661.11,660.88,1.782]
[1752002522273,1.69969265,661.12,660.88,1.782]
[1752002522977,1.69969265,661.13,660.88,1.782]
[1752002523376,1.69969265,661.12,660.88,1.782]
[1752002528878,1.69969265,661.11,660.88,1.782]
[1752002531789,1.69969265,661.12,660.88,1.782]
[1752002532890,1.69969265,661.11,660.88,1.782]
[1752002534289,1.69969265,661.12,660.88,1.782]
[1752002536193,3.15653834,661.11,660.88,1.782]
[1752002536393,1.45684569,661.1,660.88,1.782]
[1752002536590,1.45684569,661.09,660.88,1.782]
[1752002536888,1.45684569,661.08,660.88,1.782]
[1752002537089,1.45684569,661.07,660.88,1.782]
[1752002537293,1.45684569,661.06,660.88,1.782]
[1752002537588,1.45684569,661.05,660.88,1.782]
[1752002537789,1.45684569,661.04,660.88,1.782]
[1752002538092,1.45684569,661.03,660.88,1.782]
[1752002538288,1.45684569,661.02,660.88,1.782]
[1752002538588,1.45684569,661.01,660.88,1.782]
[1752002538792,1.45684569,661.0,660.88,1.782]
[1752002539093,1.45684569,660.99,660.88,1.782]
[1752002539295,1.45684569,660.98,660.88,1.782]
[1752002539492,1.45684569,660.97,660.88,1.782]
[1752002539792,1.45684569,660.96,660.88,1.782]
[1752002540090,1.45684569,660.95,660.88,1.782]
[1752002540295,1.45684569,660.94,660.88,1.782]
[1752002540492,1.45684569,660.93,660.88,1.782]
[1752002540692,1.45684569,660.92,660.88,1.782]
[1752002540896,1.45684569,660.91,660.88,1.782]
[1752002541192,1.45684569,660.9,660.88,1.782]
[1752002541394,1.45684569,660.89,660.88,1.782]
[1752002541594,1.45684569,660.89,660.87,0.26316585]
[1752002541793,1.69969265,661.13,660.87,0.26316585]
[1752002541992,1.45687297,661.12,660.87,0.26316585]
[1752002542297,1.45687297,661.11,660.87,0.26316585]
[1752002542596,1.45687297,661.1,660.87,0.26316585]
[1752002542894,1.45687297,661.09,660.87,0.26316585]
[1752002543094,1.45687297,661.08,660.87,0.26316585]
[1752002543293,1.45687297,661.07,660.87,0.26316585]
[1752002543498,1.45687297,661.06,660.87,0.26316585]
[1752002543699,1.45687297,661.05,660.87,0.26316585]
[1752002543896,1.45687297,661.04,660.87,0.26316585]
[1752002544096,1.45687297,661.03,660.87,0.26316585]
[1752002544301,1.45687297,661.02,660.87,0.26316585]
[1752002544596,1.45687297,661.01,660.87,0.26316585]
[1752002544900,1.45687297,661.0,660.87,0.26316585]
[1752002545099,1.45687297,660.99,660.87,0.26316585]
[1752002545300,1.45687297,660.98,660.87,0.26316585]
[1752002545497,1.45687297,660.97,660.87,0.26316585]
[1752002545699,1.45687297,660.96,660.87,0.26316585]
[1752002545899,1.45687297,660.95,660.87,0.26316585]
[1752002546101,1.45687297,660.94,660.87,0.26316585]
[1752002546402,1.45687297,660.93,660.87,0.26316585]
[1752002546598,1.45687297,660.92,660.87,0.26316585]
[1752002546799,1.45687297,660.91,660.87,0.26316585]
[1752002546997,1.45687297,660.9,660.87,0.26316585]
[1752002547197,1.45687297,660.89,660.87,0.26316585]
[1752002547400,1.69969265,661.13,660.87,0.26316585]
[1752002547599,1.45708953,661.12,660.87,0.26316585]
[1752002547798,1.45708953,661.11,660.87,0.26316585]
[1752002548103,1.45708953,661.1,660.87,0.26316585]
[1752002548301,1.45708953,661.09,660.87,0.26316585]
[1752002548504,1.45708953,661.08,660.87,0.26316585]
[1752002548803,1.45708953,661.07,660.87,0.26316585]
[1752002549001,0.26322458,661.58,660.87,0.26316585]
[1752002549002,1.45708953,661.06,660.87,0.26316585]
[1752002549201,1.45708953,661.05,660.87,0.26316585]
[1752002549401,1.45708953,661.04,660.87,0.26316585]
[1752002549604,1.45708953,661.03,660.87,0.26316585]
[1752002549803,1.45708953,661.02,660.87,0.26316585]
[1752002550001,1.45708953,661.01,660.87,0.26316585]
[1752002550302,1.45708953,661.0,660.87,0.26316585]
[1752002550503,1.45708953,660.99,660.87,0.26316585]
[1752002550706,1.45708953,660.98,660.87,0.26316585]
[1752002550903,1.45708953,660.97,660.87,0.26316585]
[1752002551204,1.45708953,660.96,660.87,0.26316585]
[1752002551407,1.45708953,660.95,660.87,0.26316585]
[1752002551605,1.45708953,660.94,660.87,0.26316585]
[1752002551804,1.45708953,660.93,660.87,0.26316585]
[1752002552104,1.45708953,660.92,660.87,0.26316585]
[1752002552403,1.45708953,660.91,660.87,0.26316585]
[1752002552608,1.45708953,660.9,660.87,0.26316585]
[1752002552903,1.45708953,660.89,660.87,0.26316585]
[1752002553108,1.69969265,661.12,660.87,0.26316585]
[1752002553305,1.45709958,661.11,660.87,0.26316585]
[1752002553510,1.45709958,661.1,660.87,0.26316585]
[1752002553708,1.45709958,661.09,660.87,0.26316585]
[1752002554006,1.45709958,661.08,660.87,0.26316585]
[1752002554205,1.45709958,661.07,660.87,0.26316585]
[1752002554411,1.45709958,661.06,660.87,0.26316585]
[1752002554610,1.45709958,661.05,660.87,0.26316585]
[1752002554809,1.45709958,661.04,660.87,0.26316585]
[1752002555108,1.45709958,661.03,660.87,0.26316585]
[1752002555307,1.45709958,661.02,660.87,0.26316585]
[1752002555506,1.45709958,661.01,660.87,0.26316585]
[1752002555707,1.45709958,661.0,660.87,0.26316585]
[1752002555906,1.45709958,660.99,660.87,0.26316585]
[1752002556107,1.45709958,660.98,660.87,0.26316585]
[1752002556308,1.45709958,660.97,660.87,0.26316585]
[1752002556509,1.45709958,660.96,660.87,0.26316585]
[1752002556807,1.45709958,660.95,660.87,0.26316585]
[1752002557008,1.45709958,660.94,660.87,0.26316585]
[1752002557208,1.45709958,660.93,660.87,0.26316585]
[1752002557409,1.45709958,660.92,660.87,0.26316585]
[1752002557608,1.45709958,660.91,660.87,0.26316585]
[1752002557812,1.45709958,660.9,660.87,0.26316585]
[1752002558014,1.69969265,661.12,660.87,0.26316585]
[1752002558209,1.45709594,661.11,660.87,0.26316585]
[1752002558414,1.45709594,661.1,660.87,0.26316585]
[1752002558612,1.45709594,661.09,660.87,0.26316585]
[1752002558914,1.45709594,661.08,660.87,0.26316585]
[1752002559115,1.45709594,661.07,660.87,0.26316585]
[1752002559415,1.45709594,661.06,660.87,0.26316585]
[1752002559614,1.45709594,661.05,660.87,0.26316585]
[1752002559817,1.45709594,661.04,660.87,0.26316585]
[1752002560016,1.45709594,661.03,660.87,0.26316585]
[1752002560316,1.45709594,661.02,660.87,0.26316585]
[1752002560511,1.45709594,661.01,660.87,0.26316585]
[1752002560715,1.45709594,661.0,660.87,0.26316585]
[1752002560913,1.45709594,660.99,660.87,0.26316585]
[1752002561212,1.45709594,660.98,660.87,0.26316585]
[1752002561416,1.45709594,660.97,660.87,0.26316585]
[1752002561612,1.45709594,660.96,660.87,0.26316585]
[1752002561816,1.45709594,660.95,660.87,0.26316585]
[1752002562014,1.45709594,660.94,660.87,0.26316585]
[1752002562213,1.45709594,660.93,660.87,0.26316585]
[1752002562419,1.45709594,660.92,660.87,0.26316585]
[1752002562615,1.45709594,660.91,660.87,0.26316585]
[1752002562815,1.69969265,661.1,660.87,0.26316585]
[1752002563019,1.45722966,661.09,660.87,0.26316585]
[1752002563315,1.45722966,661.08,660.87,0.26316585]
[1752002563515,1.45722966,661.07,660.87,0.26316585]
[1752002563719,1.45722966,661.06,660.87,0.26316585]
[1752002564018,1.45722966,661.05,660.87,0.26316585]
[1752002564217,1.45722966,661.04,660.87,0.26316585]
[1752002564416,1.45722966,661.03,660.87,0.26316585]
[1752002564618,1.45722966,661.02,660.87,0.26316585]
[1752002564818,1.45722966,661.01,660.87,0.26316585]
[1752002565019,1.45722966,661.0,660.87,0.26316585]
[1752002565218,1.45722966,660.99,660.87,0.26316585]
[1752002565422,1.45722966,660.98,660.87,0.26316585]
[1752002565620,1.45722966,660.97,660.87,0.26316585]
[1752002565822,1.45722966,660.96,660.87,0.26316585]
[1752002566119,1.45722966,660.95,660.87,0.26316585]
[1752002566323,1.45722966,660.94,660.87,0.26316585]
[1752002566521,1.45722966,660.93,660.87,0.26316585]
[1752002566824,1.45722966,660.92,660.87,0.26316585]
[1752002567021,1.45722966,660.91,660.87,0.26316585]
[1752002567323,1.45722966,660.9,660.87,0.26316585]
[1752002567525,1.69969265,661.1,660.87,0.26316585]
[1752002567825,1.45711635,661.09,660.87,0.26316585]
[1752002568024,1.45711635,661.08,660.87,0.26316585]
[1752002568221,1.45711635,661.07,660.87,0.26316585]
[1752002568426,1.45711635,661.06,660.87,0.26316585]
[1752002568626,1.45711635,661.05,660.87,0.26316585]
[1752002568827,1.45711635,661.04,660.87,0.26316585]
[1752002569122,1.45711635,661.03,660.87,0.26316585]
[1752002569326,1.45711635,661.02,660.87,0.26316585]
[1752002569524,1.45711635,661.01,660.87,0.26316585]
[1752002569723,1.45711635,661.0,660.87,0.26316585]
[1752002569929,1.45711635,660.99,660.87,0.26316585]
[1752002570229,1.45711635,660.98,660.87,0.26316585]
[1752002570429,1.45711635,660.97,660.87,0.26316585]
[1752002570723,1.45711635,660.96,660.87,0.26316585]
[1752002570924,1.45711635,660.95,660.87,0.26316585]
[1752002571127,1.45711635,660.94,660.87,0.26316585]
[1752002571328,1.45711635,660.93,660.87,0.26316585]
[1752002571528,1.45711635,660.92,660.87,0.26316585]
[1752002571824,1.45711635,660.91,660.87,0.26316585]
[1752002572028,1.45711635,660.9,660.87,0.26316585]
[1752002572228,1.45711635,660.89,660.87,0.26316585]
[1752002572427,1.45711635,660.88,660.87,0.26316585]
[1752002572629,1.69969265,661.13,660.87,0.26316585]
[1752002572924,1.45709834,661.12,660.87,0.26316585]
[1752002573129,1.45709834,661.11,660.87,0.26316585]
[1752002573326,1.45709834,661.1,660.87,0.26316585]
[1752002573630,1.45709834,661.09,660.87,0.26316585]
[1752002573829,1.45709834,661.08,660.87,0.26316585]
[1752002574025,1.69969265,661.12,660.87,0.26316585]
[1752002574026,1.45709834,661.07,660.87,0.26316585]
[1752002574231,1.45709834,661.06,660.87,0.26316585]
[1752002574429,1.45709834,661.05,660.87,0.26316585]
[1752002574628,1.45709834,661.04,660.87,0.26316585]
[1752002574924,1.45709834,661.03,660.87,0.26316585]
[1752002575126,1.45709834,661.02,660.87,0.26316585]
[1752002575323,1.45709834,661.01,660.87,0.26316585]
[1752002575530,1.45709834,661.0,660.87,0.26316585]
[1752002575726,1.45709834,660.99,660.87,0.26316585]
[1752002576030,1.45709834,660.98,660.87,0.26316585]
[1752002576224,1.45709834,660.97,660.87,0.26316585]
[1752002576429,1.45709834,660.96,660.87,0.26316585]
[1752002576630,1.45709834,660.95,660.87,0.26316585]
[1752002576825,1.45709834,660.94,660.87,0.26316585]
[1752002577027,1.45709834,660.93,660.87,0.26316585]
[1752002577226,1.45709834,660.92,660.87,0.26316585]
[1752002577430,1.45709834,660.91,660.87,0.26316585]
[1752002577629,1.45709834,660.9,660.87,0.26316585]
[1752002577828,1.45709834,660.89,660.87,0.26316585]
[1752002578028,1.69969265,661.12,660.87,0.26316585]
[1752002578233,1.45708839,661.11,660.87,0.26316585]
[1752002578431,1.45708839,661.1,660.87,0.26316585]
[1752002578630,1.45708839,661.09,660.87,0.26316585]
[1752002578827,1.45708839,661.08,660.87,0.26316585]
[1752002579031,1.45708839,661.07,660.87,0.26316585]
[1752002579229,1.45708839,661.06,660.87,0.26316585]
[1752002579429,1.45708839,661.05,660.87,0.26316585]
[1752002579733,1.45708839,661.04,660.87,0.26316585]
[1752002579935,1.45708839,661.03,660.87,0.26316585]
[1752002580135,1.45708839,661.02,660.87,0.26316585]
[1752002580335,1.45708839,661.01,660.87,0.26316585]
[1752002580635,1.45708839,661.0,660.87,0.26316585]
[1752002580835,1.45708839,660.99,660.87,0.26316585]
[1752002581135,1.45708839,660.98,660.87,0.26316585]
[1752002581431,1.45708839,660.97,660.87,0.26316585]
[1752002581630,1.45708839,660.96,660.87,0.26316585]
[1752002581831,1.45708839,660.95,660.87,0.26316585]
[1752002582029,1.45708839,660.94,660.87,0.26316585]
[1752002582234,1.45708839,660.93,660.87,0.26316585]
[1752002582436,1.45708839,660.92,660.87,0.26316585]
[1752002582636,1.45708839,660.91,660.87,0.26316585]
[1752002582833,1.45708839,660.9,660.87,0.26316585]
[1752002583133,1.69969265,661.1,660.87,0.26316585]
[1752002584037,1.69969265,661.11,660.87,0.26316585]
[1752002589139,1.70006402,661.11,660.87,0.26316585]
[1752002592441,1.70006402,661.11,660.88,2.35]
[1752002605246,1.70083106,661.11,660.88,2.35]
[1752002617458,2.25697379,661.21,660.88,2.35]
[1752002617662,1.70079122,661.11,660.88,2.35]
[1752002623362,1.70080465,661.11,660.88,2.35]
[1752002646487,1.70080465,661.11,660.87,0.26316585]
[1752002648989,1.70080465,661.11,660.88,1.723]
[1752002650790,1.70080465,661.12,660.88,1.723]
[1752002659094,1.70080465,661.11,660.88,1.723]
[1752002669298,1.70080465,661.12,660.88,1.723]
[1752002669498,1.70080465,661.13,660.88,1.723]
[1752002669894,1.70080465,661.13,660.89,0.26318974]
[1752002670903,1.70080465,661.15,660.89,0.26318974]
[1752002671696,1.70080465,661.14,660.89,0.26318974]
[1752002671997,1.70080465,661.07,660.89,0.26318974]
[1752002672396,1.70080465,661.09,660.89,0.26318974]
[1752002673702,1.70080465,661.08,660.89,0.26318974]
[1752002675403,1.70080465,661.09,660.89,0.26318974]
[1752002675905,1.70080465,661.06,660.89,0.26318974]
[1752002676203,1.70080465,661.07,660.89,0.26318974]
[1752002683406,2.25697379,661.18,660.89,0.26318974]
[1752002683407,1.70080465,661.08,660.89,0.26318974]
[1752002689017,1.70080465,661.1,660.89,0.26318974]
[1752002692419,1.70080465,661.11,660.89,0.26318974]
[1752002698922,1.70080465,661.09,660.89,0.26318974]
[1752002702120,2.25697379,661.2,660.89,0.26318974]
[1752002702625,1.69735616,661.09,660.89,0.26318974]
[1752002703025,2.25697379,661.2,660.89,0.26318974]
[1752002703321,1.69735618,661.09,660.89,0.26318974]
[1752002706228,1.69735618,661.09,660.9,2.035]
[1752002717234,1.69735618,661.08,660.9,2.035]
[1752002719240,1.69735618,661.08,660.89,0.26318974]
[1752002721946,1.69735618,661.08,660.89,1.92718974]
[1752002724247,1.69735618,661.07,660.89,1.92718974]
[1752002727248,1.69735618,661.06,660.89,1.92718974]
[1752002730244,1.69735618,661.05,660.89,1.92718974]
[1752002731346,1.69735618,661.04,660.89,1.92718974]
[1752002732549,1.69735618,661.16,660.89,1.92718974]
[1752002732747,1.69735618,661.14,660.89,1.92718974]
[1752002734452,1.69735618,661.15,660.89,1.92718974]
[1752002737953,1.69735618,661.15,660.89,0.26318974]
[1752002738852,1.69735618,661.16,660.89,0.26318974]
[1752002740959,1.69735618,661.16,660.9,2.539]
[1752002742360,1.69735618,661.11,660.9,2.539]
[1752002747463,1.69735618,661.1,660.9,2.539]
[1752002748163,1.69735618,661.09,660.9,2.539]
[1752002749569,1.69735618,661.08,660.9,2.539]
[1752002751371,1.69735618,661.09,660.9,2.539]
[1752002756273,0.26320765,661.49,660.9,2.539]
[1752002756274,1.69735618,661.11,660.9,2.539]
[1752002758479,1.69735618,661.17,660.9,2.539]
[1752002761079,1.69735618,661.17,660.89,0.26318974]
[1752002762574,1.69735618,661.16,660.89,0.26318974]
[1752002762787,1.69735618,661.24,660.89,0.26318974]
[1752002763581,1.69735618,661.26,660.89,0.26318974]
[1752002764080,1.69735618,661.3,660.89,0.26318974]
[1752002764278,1.69735618,661.31,660.89,0.26318974]
[1752002764981,1.69735618,661.31,660.9,2.426]
[1752002765281,1.69735618,661.32,660.9,2.426]
[1752002766182,1.69735618,661.33,660.9,2.426]
[1752002767082,1.69735618,661.34,660.9,2.426]
[1752002767282,1.69735618,661.35,660.9,2.426]
[1752002769179,1.69735618,661.36,660.9,2.426]
[1752002769885,1.69735618,661.34,660.9,2.426]
[1752002770184,1.69735618,661.35,660.9,2.426]
[1752002772081,1.69735618,661.36,660.9,2.426]
[1752002772586,1.69735618,661.34,660.9,2.426]
[1752002772986,1.69735618,661.33,660.9,2.426]
[1752002775193,1.69735618,661.34,660.9,2.426]
[1752002776298,1.69735618,661.36,660.9,2.426]
[1752002781100,1.69735618,661.37,660.9,2.426]
[1752002786110,1.69735618,661.34,660.9,2.426]
[1752002795417,1.69735618,661.33,660.9,2.426]
[1752002804425,1.69735618,661.32,660.9,2.426]
[1752002808521,1.69735618,661.31,660.9,2.426]
[1752002810322,1.69735618,661.3,660.9,2.426]
[1752002811225,2.25697379,661.41,660.9,2.426]
[1752002811425,1.69574401,661.3,660.9,2.426]
[1752002813426,1.69574401,661.29,660.9,2.426]
[1752002814526,1.69574401,661.28,660.9,2.426]
[1752002815127,1.69574401,661.28,660.89,0.26318974]
[1752002816628,1.69574401,661.27,660.89,0.26318974]
[1752002817431,1.69574401,661.26,660.9,1.7]
[1752002818631,1.69574401,661.25,660.9,1.7]
[1752002821030,2.25697379,661.35,660.9,1.7]
[1752002821031,1.69574401,661.24,660.9,1.7]
[1752002821231,1.69574401,661.23,660.9,1.7]
[1752002822032,1.69574401,661.24,660.9,1.7]
[1752002822235,1.69574401,661.22,660.9,1.7]
[1752002823234,1.69574401,661.21,660.9,1.7]
[1752002832741,1.69574401,661.23,660.9,1.7]
[1752002838946,2.25697379,661.35,660.9,1.7]
[1752002839246,1.70058522,661.23,660.9,1.7]
[1752002842646,1.70058522,661.21,660.9,1.7]
[1752002858859,1.70058522,661.33,660.9,1.7]
[1752002859264,1.70058522,661.28,660.9,1.7]
[1752002859864,1.70058522,661.2,660.9,1.7]
[1752002860263,2.25697379,661.36,660.9,1.7]
[1752002860264,1.70058522,661.21,660.9,1.7]
[1752002860462,1.70058522,661.2,660.9,1.7]
[1752002860761,1.70058522,661.16,660.9,1.7]
[1752002860965,1.70058522,661.15,660.9,1.7]
[1752002861260,1.70058522,661.16,660.9,1.7]
[1752002861662,1.70058522,661.15,660.9,1.7]
[1752002862664,1.70058522,661.16,660.9,1.7]
[1752002863067,0.26321562,661.66,660.9,1.7]
[1752002863068,1.70058522,661.14,660.9,1.7]
[1752002863269,1.70058522,661.15,660.9,1.7]
[1752002863563,1.70058522,661.17,660.9,1.7]
[1752002864170,1.70058522,661.15,660.9,1.7]
[1752002865267,1.70058522,661.16,660.9,1.7]
[1752002866571,1.70058522,661.18,660.9,1.7]
[1752002867367,1.70058522,661.19,660.9,1.7]
[1752002867570,1.70058522,661.15,660.9,1.7]
[1752002868069,1.70058522,661.16,660.9,1.7]
[1752002868370,1.70058522,661.17,660.9,1.7]
[1752002871277,1.70058522,661.18,660.9,1.7]
[1752002873479,1.70058522,661.16,660.9,1.7]
[1752002873677,1.70058522,661.15,660.9,1.7]
[1752002874280,1.70058522,661.16,660.9,1.7]
[1752002877486,1.70058522,661.17,660.89,0.26318974]
[1752002877983,1.70058522,661.16,660.89,0.26318974]
[1752002879187,1.70058522,661.17,660.89,0.26318974]
[1752002881190,1.70058522,661.17,660.9,1.592]
[1752002887298,1.70058522,661.18,660.9,1.592]
[1752002893705,1.70058522,661.23,660.9,1.592]
[1752002896109,1.70058522,661.22,660.9,1.592]
[1752002896604,1.70058522,661.21,660.9,1.592]
[1752002902213,1.70058522,661.21,660.89,0.26318974]
[1752002903314,1.70058522,661.2,660.89,0.26318974]
[1752002903716,1.70058522,661.17,660.89,0.26318974]
[1752002904212,1.70058522,661.16,660.89,0.26318974]
[1752002904613,1.70058522,661.16,660.9,2.192]
[1752002907517,1.70058522,661.15,660.9,2.192]
[1752002908417,1.70058522,661.14,660.9,2.192]
[1752002909619,1.70058522,661.15,660.9,2.192]
[1752002910414,1.70058522,661.14,660.9,2.192]
[1752002912221,1.70058522,661.13,660.9,2.192]
[1752002912419,1.70058522,661.15,660.9,2.192]
[1752002914421,1.70058522,661.14,660.9,2.192]
[1752002915223,1.70058522,661.13,660.9,2.192]
[1752002915821,1.70058522,661.12,660.9,2.192]
[1752002917424,1.70058522,661.11,660.9,2.192]
[1752002918225,1.70058522,661.1,660.9,2.192]
[1752002919025,1.70058522,661.09,660.9,2.192]
[1752002919225,1.70058522,661.1,660.9,2.192]
[1752002919424,1.70058522,661.09,660.9,2.192]
[1752002921232,1.70058522,661.08,660.9,2.192]
[1752002922332,1.70058522,661.07,660.9,2.192]
[1752002923032,2.25697379,661.17,660.9,2.192]
[1752002923231,1.69925176,661.07,660.9,2.192]
[1752002923532,1.69925176,661.06,660.9,2.192]
[1752002926632,1.69925176,661.05,660.9,2.192]
[1752002934433,2.25697379,661.15,660.9,2.192]
[1752002934637,1.7000979,661.05,660.9,2.192]